[Event "Late-Titled-Tuesday-Blitz-February-20-2024"]
[Site "Chess.com"]
[Date "2024.02.20"]
[Round "11"]
[White "AlexTruskavetsky"]
[Black "dretch"]
[Result "0-1"]
[WhiteElo "2733"]
[BlackElo "2878"]
[TimeControl "180+1"]
[EndTime "16:05:53 PST"]
[Termination "dretch won by checkmate"]

1. d4 {[%clk 0:03:00.9]} 1... d5 {[%clk 0:02:59.4]} 2. c4 {[%clk 0:02:56]} 2...
c6 {[%clk 0:02:59.6]} 3. Nf3 {[%clk 0:02:54.9]} 3... Nf6 {[%clk 0:02:59.6]} 4.
e3 {[%clk 0:02:55.2]} 4... Bf5 {[%clk 0:02:57.7]} 5. Bd3 {[%clk 0:02:55.1]} 5...
Bxd3 {[%clk 0:02:57.5]} 6. Qxd3 {[%clk 0:02:56]} 6... e6 {[%clk 0:02:57.9]} 7.
O-O {[%clk 0:02:56.5]} 7... Nbd7 {[%clk 0:02:58.1]} 8. b3 {[%clk 0:02:56.9]}
8... Bd6 {[%clk 0:02:56]} 9. Bb2 {[%clk 0:02:57.5]} 9... Qb8 {[%clk 0:02:54.4]}
10. Nbd2 {[%clk 0:02:56.3]} 10... O-O {[%clk 0:02:53.5]} 11. e4 {[%clk
0:02:56.3]} 11... dxe4 {[%clk 0:02:52.1]} 12. Nxe4 {[%clk 0:02:57.2]} 12... Nxe4
{[%clk 0:02:49.9]} 13. Qxe4 {[%clk 0:02:58.1]} 13... Rd8 {[%clk 0:02:48.9]} 14.
Rad1 {[%clk 0:02:57.2]} 14... Qc7 {[%clk 0:02:45.2]} 15. h3 {[%clk 0:02:56.3]}
15... a5 {[%clk 0:02:39.4]} 16. a3 {[%clk 0:02:52.4]} 16... Nf6 {[%clk
0:02:33.3]} 17. Qc2 {[%clk 0:02:51.8]} 17... Be7 {[%clk 0:02:26.8]} 18. Rfe1
{[%clk 0:02:48.4]} 18... c5 {[%clk 0:02:17.8]} 19. dxc5 {[%clk 0:02:44.5]} 19...
Bxc5 {[%clk 0:02:16.8]} 20. Ng5 {[%clk 0:02:39.7]} 20... Rxd1 {[%clk 0:02:16.1]}
21. Rxd1 {[%clk 0:02:40.6]} 21... h6 {[%clk 0:01:48.8]} 22. Bxf6 {[%clk
0:02:36]} 22... hxg5 {[%clk 0:01:48.6]} 23. Bxg5 {[%clk 0:02:36.9]} 23... Bxa3
{[%clk 0:01:48.9]} 24. h4 {[%clk 0:02:33]} 24... Bc5 {[%clk 0:01:45]} 25. Rd3
{[%clk 0:02:17.9]} 25... Qe5 {[%clk 0:01:41.7]} 26. g3 {[%clk 0:01:45.6]} 26...
Qf5 {[%clk 0:01:36.7]} 27. Qe2 {[%clk 0:01:07]} 27... Bxf2+ {[%clk 0:01:34.5]}
28. Kg2 {[%clk 0:01:07.4]} 28... Bc5 {[%clk 0:01:32.8]} 29. g4 {[%clk
0:01:05.3]} 29... Qg6 {[%clk 0:01:31.8]} 30. Bd2 {[%clk 0:01:01.7]} 30... Qf6
{[%clk 0:01:28.1]} 31. g5 {[%clk 0:00:59.2]} 31... Qf5 {[%clk 0:01:24.7]} 32.
Qf3 {[%clk 0:00:56.3]} 32... Qxf3+ {[%clk 0:01:04.1]} 33. Kxf3 {[%clk
0:00:57.2]} 33... a4 {[%clk 0:01:04.4]} 34. bxa4 {[%clk 0:00:43.4]} 34... Rxa4
{[%clk 0:01:00.3]} 35. Rd8+ {[%clk 0:00:43.4]} 35... Kh7 {[%clk 0:01:00.2]} 36.
Rd7 {[%clk 0:00:43.9]} 36... Rxc4 {[%clk 0:00:49.7]} 37. h5 {[%clk 0:00:44]}
37... Rd4 {[%clk 0:00:48.4]} 38. Rxd4 {[%clk 0:00:40.6]} 38... Bxd4 {[%clk
0:00:48.6]} 39. Ke4 {[%clk 0:00:41.3]} 39... Bb2 {[%clk 0:00:47]} 40. Kd3 {[%clk
0:00:36]} 40... g6 {[%clk 0:00:45.9]} 41. h6 {[%clk 0:00:35.8]} 41... f6 {[%clk
0:00:44.3]} 42. Ke4 {[%clk 0:00:28]} 42... fxg5 {[%clk 0:00:31.3]} 43. Bxg5
{[%clk 0:00:28.1]} 43... Ba1 {[%clk 0:00:29.8]} 44. Bd2 {[%clk 0:00:24.4]} 44...
Bf6 {[%clk 0:00:29.4]} 45. Kd3 {[%clk 0:00:19.1]} 45... g5 {[%clk 0:00:28.7]}
46. Kc4 {[%clk 0:00:20]} 46... Kxh6 {[%clk 0:00:28.6]} 47. Kb5 {[%clk
0:00:20.9]} 47... Bd8 {[%clk 0:00:27.2]} 48. Kc4 {[%clk 0:00:20.5]} 48... Bc7
{[%clk 0:00:27.4]} 49. Kd4 {[%clk 0:00:20.9]} 49... Kg6 {[%clk 0:00:27.7]} 50.
Ke4 {[%clk 0:00:21.4]} 50... g4 {[%clk 0:00:28.1]} 51. Bc3 {[%clk 0:00:21.3]}
51... Kg5 {[%clk 0:00:27.2]} 52. Be1 {[%clk 0:00:20.2]} 52... g3 {[%clk
0:00:27.2]} 53. Kf3 {[%clk 0:00:20.8]} 53... Kh4 {[%clk 0:00:27.4]} 54. Kg2
{[%clk 0:00:21.5]} 54... Kg4 {[%clk 0:00:27.7]} 55. Bb4 {[%clk 0:00:21.8]} 55...
b5 {[%clk 0:00:27.7]} 56. Ba3 {[%clk 0:00:22.3]} 56... Bf4 {[%clk 0:00:27.2]}
57. Bb4 {[%clk 0:00:22.5]} 57... e5 {[%clk 0:00:27]} 58. Ba3 {[%clk 0:00:22.5]}
58... e4 {[%clk 0:00:27.4]} 59. Bb4 {[%clk 0:00:22.8]} 59... e3 {[%clk
0:00:27.6]} 60. Bc5 {[%clk 0:00:20.7]} 60... e2 {[%clk 0:00:27.1]} 61. Bb4
{[%clk 0:00:21.2]} 61... Be5 {[%clk 0:00:24.3]} 62. Kh1 {[%clk 0:00:20.2]} 62...
Kf3 {[%clk 0:00:23.7]} 63. Kg1 {[%clk 0:00:13.2]} 63... Bd4+ {[%clk 0:00:21.6]}
64. Kh1 {[%clk 0:00:14]} 64... g2+ {[%clk 0:00:20.3]} 65. Kh2 {[%clk 0:00:14.9]}
65... g1=Q+ {[%clk 0:00:19.9]} 66. Kh3 {[%clk 0:00:15.8]} 66... Qh1# {[%clk
0:00:19.9]} 0-1

[Event "Late-Titled-Tuesday-Blitz-February-20-2024"]
[Site "Chess.com"]
[Date "2024.02.20"]
[Round "11"]
[White "Bilan_Danila"]
[Black "mjelcic"]
[Result "0-1"]
[WhiteElo "2456"]
[BlackElo "2268"]
[TimeControl "180+1"]
[EndTime "16:05:57 PST"]
[Termination "mjelcic won by resignation"]

1. d4 {[%clk 0:02:59.7]} 1... b6 {[%clk 0:02:59.1]} 2. Nf3 {[%clk 0:02:57.9]}
2... Bb7 {[%clk 0:03:00]} 3. g3 {[%clk 0:02:58.3]} 3... e6 {[%clk 0:02:57]} 4.
Bg2 {[%clk 0:02:58.5]} 4... c5 {[%clk 0:02:56.7]} 5. O-O {[%clk 0:02:58.2]} 5...
d5 {[%clk 0:02:56.8]} 6. c4 {[%clk 0:02:57.8]} 6... Nd7 {[%clk 0:02:56.1]} 7.
cxd5 {[%clk 0:02:56.9]} 7... exd5 {[%clk 0:02:54]} 8. Nc3 {[%clk 0:02:55.9]}
8... Ngf6 {[%clk 0:02:52]} 9. Ne5 {[%clk 0:02:45]} 9... Be7 {[%clk 0:02:49.4]}
10. Qa4 {[%clk 0:02:40.8]} 10... O-O {[%clk 0:02:47.7]} 11. Nc6 {[%clk
0:02:39.2]} 11... Bxc6 {[%clk 0:02:39.3]} 12. Qxc6 {[%clk 0:02:40.1]} 12... cxd4
{[%clk 0:02:39.5]} 13. Nxd5 {[%clk 0:02:34.3]} 13... Nxd5 {[%clk 0:02:36.7]} 14.
Qxd5 {[%clk 0:02:33.4]} 14... Rc8 {[%clk 0:02:28.7]} 15. Qxd4 {[%clk 0:02:26.6]}
15... Bf6 {[%clk 0:02:28.8]} 16. Qa4 {[%clk 0:02:20.9]} 16... Re8 {[%clk
0:02:00.6]} 17. Rd1 {[%clk 0:02:09.1]} 17... Rc7 {[%clk 0:01:53.1]} 18. Bf4
{[%clk 0:02:06.9]} 18... Be5 {[%clk 0:01:51.4]} 19. Bxe5 {[%clk 0:02:04.4]}
19... Rxe5 {[%clk 0:01:51.5]} 20. Rd2 {[%clk 0:02:01.7]} 20... b5 {[%clk
0:01:40.3]} 21. Qf4 {[%clk 0:01:43.5]} 21... Qe7 {[%clk 0:01:37.3]} 22. Rad1
{[%clk 0:01:39.8]} 22... Nf8 {[%clk 0:01:37.2]} 23. e3 {[%clk 0:01:32.7]} 23...
Rec5 {[%clk 0:01:35.7]} 24. h4 {[%clk 0:01:24.7]} 24... Ne6 {[%clk 0:01:35.2]}
25. Qe4 {[%clk 0:01:19]} 25... g6 {[%clk 0:01:30.4]} 26. h5 {[%clk 0:01:19.2]}
26... Kg7 {[%clk 0:01:27.2]} 27. hxg6 {[%clk 0:01:16.8]} 27... hxg6 {[%clk
0:01:27]} 28. Rd5 {[%clk 0:01:11.6]} 28... Rc1 {[%clk 0:01:15.6]} 29. Qe5+
{[%clk 0:01:08.3]} 29... Kg8 {[%clk 0:01:07]} 30. Bh3 {[%clk 0:00:55.7]} 30...
R7c5 {[%clk 0:00:57]} 31. Rxc1 {[%clk 0:00:36.8]} 31... Rxc1+ {[%clk 0:00:53.3]}
32. Kh2 {[%clk 0:00:37.1]} 32... Rc2 {[%clk 0:00:25.6]} 33. Kg1 {[%clk
0:00:36.9]} 33... Qb4 {[%clk 0:00:19.5]} 34. Qf6 {[%clk 0:00:11.7]} 34... Rc1+
{[%clk 0:00:11.1]} 35. Kg2 {[%clk 0:00:11.3]} 35... Qe4+ {[%clk 0:00:10.8]} 36.
Qf3 {[%clk 0:00:10.8]} 36... Rg1+ {[%clk 0:00:10.9]} 37. Kxg1 {[%clk 0:00:11.4]}
37... Qxf3 {[%clk 0:00:11.3]} 38. Bg2 {[%clk 0:00:12.3]} 38... Qg4 {[%clk
0:00:10.4]} 39. Rxb5 {[%clk 0:00:12.2]} 39... Qd1+ {[%clk 0:00:09.4]} 40. Bf1
{[%clk 0:00:11.8]} 40... Qd7 {[%clk 0:00:08]} 41. Kg2 {[%clk 0:00:12]} 41... Kg7
{[%clk 0:00:08.6]} 42. Rb3 {[%clk 0:00:08]} 42... Qc6+ {[%clk 0:00:08.6]} 43.
Kg1 {[%clk 0:00:08]} 43... Qc1 {[%clk 0:00:09]} 44. Rb7 {[%clk 0:00:06.9]} 44...
a5 {[%clk 0:00:08.8]} 45. b3 {[%clk 0:00:06.6]} 45... Qd2 {[%clk 0:00:08.6]} 46.
Bc4 {[%clk 0:00:06.4]} 46... Ng5 {[%clk 0:00:06]} 47. Kg2 {[%clk 0:00:06.6]}
47... Qd1 {[%clk 0:00:03.4]} 48. Rb5 {[%clk 0:00:01.9]} 48... Qf3+ {[%clk
0:00:03.3]} 49. Kf1 {[%clk 0:00:02.5]} 49... Ne4 {[%clk 0:00:03.6]} 50. Ke1
{[%clk 0:00:02]} 50... Qxf2+ {[%clk 0:00:03.7]} 0-1

[Event "Late-Titled-Tuesday-Blitz-February-20-2024"]
[Site "Chess.com"]
[Date "2024.02.20"]
[Round "11"]
[White "boguszp"]
[Black "LUISMIGUELOV"]
[Result "0-1"]
[WhiteElo "2000"]
[BlackElo "2174"]
[TimeControl "180+1"]
[EndTime "16:06:07 PST"]
[Termination "LUISMIGUELOV won by checkmate"]

1. d4 {[%clk 0:03:00.9]} 1... e6 {[%clk 0:02:30.5]} 2. Nf3 {[%clk 0:02:59]} 2...
d5 {[%clk 0:02:30.5]} 3. Bf4 {[%clk 0:02:58.7]} 3... Bd6 {[%clk 0:02:30]} 4. Bg3
{[%clk 0:02:58.1]} 4... Nf6 {[%clk 0:02:29.3]} 5. e3 {[%clk 0:02:57.5]} 5... Ne4
{[%clk 0:02:29.1]} 6. Bxd6 {[%clk 0:02:55.8]} 6... cxd6 {[%clk 0:02:28.6]} 7.
Bd3 {[%clk 0:02:55.7]} 7... f5 {[%clk 0:02:28.6]} 8. O-O {[%clk 0:02:55.7]} 8...
O-O {[%clk 0:02:28.5]} 9. Nbd2 {[%clk 0:02:54.3]} 9... Bd7 {[%clk 0:02:28.9]}
10. c4 {[%clk 0:02:52.1]} 10... Be8 {[%clk 0:02:28.9]} 11. cxd5 {[%clk
0:02:51.1]} 11... exd5 {[%clk 0:02:28.5]} 12. Qb3 {[%clk 0:02:50.6]} 12... Bf7
{[%clk 0:02:13.3]} 13. Qxb7 {[%clk 0:02:49.4]} 13... Nd7 {[%clk 0:02:13.2]} 14.
Rfc1 {[%clk 0:02:42.7]} 14... Rb8 {[%clk 0:02:12.3]} 15. Qxa7 {[%clk 0:02:40.9]}
15... Rxb2 {[%clk 0:02:11.7]} 16. Qc7 {[%clk 0:02:32.8]} 16... Nxd2 {[%clk
0:02:02.3]} 17. Nxd2 {[%clk 0:02:22.8]} 17... Rxd2 {[%clk 0:02:01.4]} 18. Qc3
{[%clk 0:02:15.7]} 18... Rxd3 {[%clk 0:01:54.3]} 19. Qxd3 {[%clk 0:02:15.5]}
19... Nf6 {[%clk 0:01:53.8]} 20. Rc6 {[%clk 0:02:02.9]} 20... Ne4 {[%clk
0:01:50.9]} 21. a4 {[%clk 0:01:59.4]} 21... Qa5 {[%clk 0:01:45.5]} 22. Rc2
{[%clk 0:01:48.2]} 22... Be8 {[%clk 0:01:42.6]} 23. Qb3 {[%clk 0:01:46.1]} 23...
f4 {[%clk 0:01:39.2]} 24. exf4 {[%clk 0:01:33]} 24... Rxf4 {[%clk 0:01:37.3]}
25. f3 {[%clk 0:01:33.1]} 25... Nf6 {[%clk 0:01:24]} 26. Qc3 {[%clk 0:01:31.8]}
26... Qxc3 {[%clk 0:01:20.6]} 27. Rxc3 {[%clk 0:01:31.3]} 27... Rxd4 {[%clk
0:01:20.7]} 28. a5 {[%clk 0:01:30]} 28... Bb5 {[%clk 0:01:21.2]} 29. a6 {[%clk
0:01:27.6]} 29... Bxa6 {[%clk 0:01:16.9]} 30. Rxa6 {[%clk 0:01:26.3]} 30... Rd1+
{[%clk 0:01:14.6]} 31. Kf2 {[%clk 0:01:26.1]} 31... Rd2+ {[%clk 0:01:10.1]} 32.
Kg3 {[%clk 0:01:25.6]} 32... d4 {[%clk 0:01:09.8]} 33. Rc7 {[%clk 0:01:18]}
33... h6 {[%clk 0:01:07.5]} 34. Rxd6 {[%clk 0:01:12.3]} 34... Rd3 {[%clk
0:01:05.4]} 35. Rc4 {[%clk 0:01:08.7]} 35... Ne4+ {[%clk 0:01:03.6]} 36. Kf4
{[%clk 0:00:58.1]} 36... Nxd6 {[%clk 0:01:04.5]} 37. Rc6 {[%clk 0:00:54.6]}
37... Nf7 {[%clk 0:01:02.9]} 38. Ke4 {[%clk 0:00:50.7]} 38... Rd2 {[%clk
0:01:02.4]} 39. g4 {[%clk 0:00:46.6]} 39... Ng5+ {[%clk 0:01:00.4]} 40. Kf4
{[%clk 0:00:41.9]} 40... Rxh2 {[%clk 0:00:57.7]} 41. Kg3 {[%clk 0:00:35.5]}
41... Rd2 {[%clk 0:00:55.8]} 42. Rd6 {[%clk 0:00:33.4]} 42... Rd3 {[%clk
0:00:53.5]} 43. Rd5 {[%clk 0:00:32.5]} 43... Rxf3+ {[%clk 0:00:51.5]} 44. Kg2
{[%clk 0:00:33.1]} 44... Rd3 {[%clk 0:00:50.8]} 45. Kf2 {[%clk 0:00:29.9]} 45...
Kh7 {[%clk 0:00:47]} 46. Ke2 {[%clk 0:00:30.3]} 46... Re3+ {[%clk 0:00:45.6]}
47. Kf2 {[%clk 0:00:27]} 47... Re4 {[%clk 0:00:45.4]} 48. Rd6 {[%clk 0:00:23.6]}
48... Rxg4 {[%clk 0:00:44.2]} 49. Ke2 {[%clk 0:00:23.4]} 49... Re4+ {[%clk
0:00:42.7]} 50. Kd3 {[%clk 0:00:22.9]} 50... Rh4 {[%clk 0:00:39.7]} 51. Rc6
{[%clk 0:00:15.7]} 51... h5 {[%clk 0:00:38.9]} 52. Rc5 {[%clk 0:00:14.3]} 52...
Rg4 {[%clk 0:00:38.5]} 53. Rd5 {[%clk 0:00:13.5]} 53... h4 {[%clk 0:00:38.3]}
54. Rf5 {[%clk 0:00:12.1]} 54... h3 {[%clk 0:00:37.5]} 55. Rf1 {[%clk
0:00:11.1]} 55... h2 {[%clk 0:00:33.5]} 56. Rh1 {[%clk 0:00:10.7]} 56... Rg2
{[%clk 0:00:33.2]} 57. Kxd4 {[%clk 0:00:09.7]} 57... Nf3+ {[%clk 0:00:33.1]} 58.
Ke3 {[%clk 0:00:09]} 58... Rg1 {[%clk 0:00:33.5]} 59. Rxh2+ {[%clk 0:00:08.4]}
59... Nxh2 {[%clk 0:00:33.2]} 60. Kf2 {[%clk 0:00:08.5]} 60... Rg6 {[%clk
0:00:31.5]} 61. Ke3 {[%clk 0:00:07.7]} 61... Ng4+ {[%clk 0:00:30.9]} 62. Kf4
{[%clk 0:00:08.1]} 62... Rf6+ {[%clk 0:00:29.2]} 63. Kxg4 {[%clk 0:00:08]} 63...
Ra6 {[%clk 0:00:28.9]} 64. Kf4 {[%clk 0:00:08]} 64... Kg6 {[%clk 0:00:27.9]} 65.
Kg4 {[%clk 0:00:07.7]} 65... Ra4+ {[%clk 0:00:27.6]} 66. Kg3 {[%clk 0:00:07.8]}
66... Kf5 {[%clk 0:00:27.1]} 67. Kf3 {[%clk 0:00:07.5]} 67... Ra3+ {[%clk
0:00:26.4]} 68. Kg2 {[%clk 0:00:07.4]} 68... Kf4 {[%clk 0:00:26.1]} 69. Kh1
{[%clk 0:00:06.5]} 69... Kg3 {[%clk 0:00:24.9]} 70. Kg1 {[%clk 0:00:06.2]} 70...
Ra1# {[%clk 0:00:24.9]} 0-1

[Event "Late-Titled-Tuesday-Blitz-February-20-2024"]
[Site "Chess.com"]
[Date "2024.02.20"]
[Round "11"]
[White "subham777"]
[Black "Jahonas"]
[Result "0-1"]
[WhiteElo "2560"]
[BlackElo "2350"]
[TimeControl "180+1"]
[EndTime "16:06:09 PST"]
[Termination "Jahonas won on time"]

1. e4 {[%clk 0:02:56.9]} 1... c6 {[%clk 0:02:59.9]} 2. c4 {[%clk 0:02:53.5]}
2... d5 {[%clk 0:02:58.5]} 3. exd5 {[%clk 0:02:53.8]} 3... cxd5 {[%clk
0:02:58.9]} 4. cxd5 {[%clk 0:02:54.7]} 4... Nf6 {[%clk 0:02:59]} 5. Nc3 {[%clk
0:02:55.5]} 5... Nxd5 {[%clk 0:02:58]} 6. Nf3 {[%clk 0:02:56.4]} 6... Nxc3
{[%clk 0:02:57.8]} 7. bxc3 {[%clk 0:02:53.8]} 7... Nc6 {[%clk 0:02:58]} 8. d4
{[%clk 0:02:52.7]} 8... e6 {[%clk 0:02:54]} 9. Bd3 {[%clk 0:02:52.6]} 9... Be7
{[%clk 0:02:52.6]} 10. Qe2 {[%clk 0:02:52.4]} 10... b6 {[%clk 0:02:41.1]} 11.
O-O {[%clk 0:02:48.2]} 11... Bb7 {[%clk 0:02:40.1]} 12. Qe4 {[%clk 0:02:46.2]}
12... Qd5 {[%clk 0:02:32.4]} 13. Qg4 {[%clk 0:02:44.4]} 13... Bf6 {[%clk
0:02:26.1]} 14. Re1 {[%clk 0:02:35.3]} 14... h5 {[%clk 0:02:23.8]} 15. Qg3
{[%clk 0:02:28.6]} 15... h4 {[%clk 0:02:21.8]} 16. Qg4 {[%clk 0:02:24.8]} 16...
Qh5 {[%clk 0:02:18.6]} 17. Qxh5 {[%clk 0:02:21.3]} 17... Rxh5 {[%clk 0:02:18.1]}
18. Bf4 {[%clk 0:02:20.2]} 18... O-O-O {[%clk 0:02:10.9]} 19. h3 {[%clk
0:02:17.3]} 19... Na5 {[%clk 0:01:56.8]} 20. Ne5 {[%clk 0:02:11.4]} 20... Bxe5
{[%clk 0:01:54.1]} 21. Bxe5 {[%clk 0:02:10.3]} 21... Rg5 {[%clk 0:01:50]} 22.
Be4 {[%clk 0:02:05.9]} 22... Bxe4 {[%clk 0:01:45]} 23. Rxe4 {[%clk 0:02:06.8]}
23... Nc4 {[%clk 0:01:35.7]} 24. Rae1 {[%clk 0:02:02.1]} 24... Nxe5 {[%clk
0:01:35.2]} 25. dxe5 {[%clk 0:02:00.7]} 25... Rd5 {[%clk 0:01:31.5]} 26. Kh2
{[%clk 0:01:48.3]} 26... Rc5 {[%clk 0:01:30.1]} 27. c4 {[%clk 0:01:47.2]} 27...
Kd7 {[%clk 0:01:26.9]} 28. Rd1+ {[%clk 0:01:44.9]} 28... Ke7 {[%clk 0:01:26.9]}
29. f4 {[%clk 0:01:43]} 29... Rg3 {[%clk 0:01:26.6]} 30. Red4 {[%clk 0:01:41.4]}
30... Rc7 {[%clk 0:01:26.2]} 31. f5 {[%clk 0:01:22.6]} 31... exf5 {[%clk
0:01:25.2]} 32. Rxh4 {[%clk 0:01:23.1]} 32... Re3 {[%clk 0:01:24.6]} 33. Rd5
{[%clk 0:01:19.5]} 33... Ke6 {[%clk 0:01:10.9]} 34. Rh8 {[%clk 0:01:08.3]} 34...
Rxc4 {[%clk 0:01:05.5]} 35. Rhd8 {[%clk 0:01:00.9]} 35... Rc7 {[%clk 0:00:59.1]}
36. R8d6+ {[%clk 0:00:40.5]} 36... Ke7 {[%clk 0:00:58.4]} 37. a4 {[%clk
0:00:33.8]} 37... g6 {[%clk 0:00:57.4]} 38. a5 {[%clk 0:00:20.5]} 38... bxa5
{[%clk 0:00:56.6]} 39. Ra6 {[%clk 0:00:14.7]} 39... Re2 {[%clk 0:00:52.6]} 40.
Rdxa5 {[%clk 0:00:13.1]} 40... Rcc2 {[%clk 0:00:52.4]} 41. Rxa7+ {[%clk
0:00:12.6]} 41... Kf8 {[%clk 0:00:52.8]} 42. Ra8+ {[%clk 0:00:11.3]} 42... Kg7
{[%clk 0:00:52.2]} 43. e6 {[%clk 0:00:10.7]} 43... Rxg2+ {[%clk 0:00:52.1]} 44.
Kh1 {[%clk 0:00:11.3]} 44... Rgd2 {[%clk 0:00:50.9]} 45. Ra1 {[%clk 0:00:08.7]}
45... fxe6 {[%clk 0:00:47.3]} 46. h4 {[%clk 0:00:09]} 46... Rh2+ {[%clk
0:00:44.6]} 47. Kg1 {[%clk 0:00:09.2]} 47... Rxh4 {[%clk 0:00:45]} 48. R1a7+
{[%clk 0:00:07.9]} 48... Kf6 {[%clk 0:00:44.7]} 49. Ra6 {[%clk 0:00:07.3]} 49...
Re4 {[%clk 0:00:43.6]} 50. Rf8+ {[%clk 0:00:06.9]} 50... Kg5 {[%clk 0:00:43.2]}
51. Ra1 {[%clk 0:00:04.7]} 51... Ree2 {[%clk 0:00:40.7]} 52. Re8 {[%clk
0:00:03.6]} 52... e5 {[%clk 0:00:40.8]} 53. Re6 {[%clk 0:00:02.9]} 53... e4
{[%clk 0:00:40.2]} 54. Kh1 {[%clk 0:00:03.3]} 54... Rh2+ {[%clk 0:00:38.3]} 55.
Kg1 {[%clk 0:00:03.3]} 55... Rhg2+ {[%clk 0:00:38.7]} 56. Kh1 {[%clk 0:00:03.6]}
56... Kf4 {[%clk 0:00:38.8]} 57. Rf1+ {[%clk 0:00:02.8]} 57... Rgf2 {[%clk
0:00:37.8]} 58. Re1 {[%clk 0:00:01.5]} 58... g5 {[%clk 0:00:37.5]} 59. Kg1
{[%clk 0:00:02.4]} 59... g4 {[%clk 0:00:36.7]} 60. Kh1 {[%clk 0:00:03.3]} 60...
g3 {[%clk 0:00:36.4]} 61. Re8 {[%clk 0:00:03.4]} 61... Rh2+ {[%clk 0:00:35.9]}
62. Kg1 {[%clk 0:00:03.8]} 62... Rcg2+ {[%clk 0:00:36.2]} 63. Kf1 {[%clk
0:00:04.7]} 63... Rh1+ {[%clk 0:00:35.8]} 64. Kxg2 {[%clk 0:00:04.7]} 64... Rxe1
{[%clk 0:00:36.2]} 65. Rh8 {[%clk 0:00:04.6]} 65... Re2+ {[%clk 0:00:36.5]} 66.
Kf1 {[%clk 0:00:04.7]} 66... Rf2+ {[%clk 0:00:36.5]} 67. Kg1 {[%clk 0:00:05]}
67... Ra2 {[%clk 0:00:34.8]} 68. Rb8 {[%clk 0:00:04.4]} 68... Kf3 {[%clk
0:00:33.9]} 69. Rb1 {[%clk 0:00:03.3]} 69... Rg2+ {[%clk 0:00:32.3]} 70. Kh1
{[%clk 0:00:02.9]} 70... Rh2+ {[%clk 0:00:32.5]} 71. Kg1 {[%clk 0:00:03]} 71...
Re2 {[%clk 0:00:32.6]} 72. Kh1 {[%clk 0:00:02.8]} 72... Kg4 {[%clk 0:00:32.4]}
73. Rb8 {[%clk 0:00:01.5]} 73... f4 {[%clk 0:00:32.5]} 74. Rg8+ {[%clk
0:00:01.9]} 74... Kf3 {[%clk 0:00:32.8]} 0-1

[Event "Late-Titled-Tuesday-Blitz-February-20-2024"]
[Site "Chess.com"]
[Date "2024.02.20"]
[Round "11"]
[White "rhungaski"]
[Black "jamengrand"]
[Result "1-0"]
[WhiteElo "2609"]
[BlackElo "2380"]
[TimeControl "180+1"]
[EndTime "16:06:17 PST"]
[Termination "rhungaski won on time"]

1. e4 {[%clk 0:03:00.9]} 1... c5 {[%clk 0:02:58.9]} 2. Nf3 {[%clk 0:03:00.5]}
2... Nc6 {[%clk 0:02:59.1]} 3. d4 {[%clk 0:03:00.9]} 3... cxd4 {[%clk
0:02:59.3]} 4. Nxd4 {[%clk 0:03:01.8]} 4... g6 {[%clk 0:02:59.9]} 5. c4 {[%clk
0:02:53.5]} 5... Bg7 {[%clk 0:02:59.8]} 6. Be3 {[%clk 0:02:52.7]} 6... Nf6
{[%clk 0:02:59.9]} 7. Nc3 {[%clk 0:02:52]} 7... O-O {[%clk 0:03:00.2]} 8. Be2
{[%clk 0:02:50.4]} 8... d6 {[%clk 0:03:00.4]} 9. O-O {[%clk 0:02:50.2]} 9... Bd7
{[%clk 0:03:00.1]} 10. h3 {[%clk 0:02:49.4]} 10... Nxd4 {[%clk 0:02:56.3]} 11.
Bxd4 {[%clk 0:02:50.3]} 11... Bc6 {[%clk 0:02:56.6]} 12. Qc2 {[%clk 0:02:49.6]}
12... a5 {[%clk 0:02:56]} 13. Rad1 {[%clk 0:02:24.1]} 13... Nd7 {[%clk
0:02:51.9]} 14. Bxg7 {[%clk 0:02:23.3]} 14... Kxg7 {[%clk 0:02:51.7]} 15. Bg4
{[%clk 0:02:21.9]} 15... Nc5 {[%clk 0:02:46.4]} 16. e5 {[%clk 0:02:20.4]} 16...
Qc7 {[%clk 0:02:24.7]} 17. exd6 {[%clk 0:02:19.7]} 17... exd6 {[%clk 0:02:24.5]}
18. b3 {[%clk 0:01:45]} 18... Kg8 {[%clk 0:02:20.3]} 19. Qd2 {[%clk 0:01:38]}
19... Rad8 {[%clk 0:02:16.4]} 20. Qf4 {[%clk 0:01:23.2]} 20... Ne6 {[%clk
0:01:50.2]} 21. Qe3 {[%clk 0:01:07.9]} 21... Nc5 {[%clk 0:01:42]} 22. Rd2 {[%clk
0:01:04.2]} 22... Rfe8 {[%clk 0:01:40.8]} 23. Qg3 {[%clk 0:01:03.8]} 23... Qe7
{[%clk 0:01:19.2]} 24. Bf3 {[%clk 0:00:57.2]} 24... Qe5 {[%clk 0:00:55.1]} 25.
Bd5 {[%clk 0:00:48.7]} 25... Qxg3 {[%clk 0:00:50.2]} 26. fxg3 {[%clk 0:00:46.9]}
26... Re7 {[%clk 0:00:40.7]} 27. Rf6 {[%clk 0:00:36.2]} 27... Kg7 {[%clk
0:00:37.4]} 28. Rdf2 {[%clk 0:00:33.9]} 28... Be8 {[%clk 0:00:35.8]} 29. R6f3
{[%clk 0:00:27]} 29... b6 {[%clk 0:00:31.5]} 30. g4 {[%clk 0:00:26.7]} 30... g5
{[%clk 0:00:27.7]} 31. Kh2 {[%clk 0:00:26.3]} 31... h6 {[%clk 0:00:28]} 32. Nb5
{[%clk 0:00:18.9]} 32... Bxb5 {[%clk 0:00:19.8]} 33. Rxf7+ {[%clk 0:00:18.2]}
33... Rxf7 {[%clk 0:00:19.6]} 34. Rxf7+ {[%clk 0:00:19.1]} 34... Kg6 {[%clk
0:00:20]} 35. cxb5 {[%clk 0:00:19.6]} 35... Re8 {[%clk 0:00:17.1]} 36. Rc7
{[%clk 0:00:15.3]} 36... Re5 {[%clk 0:00:17.1]} 37. Bf7+ {[%clk 0:00:15.3]}
37... Kf6 {[%clk 0:00:16.8]} 38. Bh5 {[%clk 0:00:14.7]} 38... Re2 {[%clk
0:00:15.1]} 39. Rc6 {[%clk 0:00:12.8]} 39... Ke5 {[%clk 0:00:15]} 40. Bg6 {[%clk
0:00:12.8]} 40... Rxa2 {[%clk 0:00:13.5]} 41. Rxb6 {[%clk 0:00:12.9]} 41... Rb2
{[%clk 0:00:13.7]} 42. Rb8 {[%clk 0:00:12.7]} 42... Rxb3 {[%clk 0:00:13.1]} 43.
Bf5 {[%clk 0:00:13.3]} 43... a4 {[%clk 0:00:12.9]} 44. b6 {[%clk 0:00:13]} 44...
a3 {[%clk 0:00:13.4]} 45. Ra8 {[%clk 0:00:13.3]} 45... Kf4 {[%clk 0:00:10.6]}
46. Bc8 {[%clk 0:00:12.7]} 46... d5 {[%clk 0:00:10]} 47. b7 {[%clk 0:00:12.4]}
47... Nxb7 {[%clk 0:00:10]} 48. Ra4+ {[%clk 0:00:12.3]} 48... Ke5 {[%clk
0:00:09.2]} 49. Bxb7 {[%clk 0:00:12.1]} 49... Rxb7 {[%clk 0:00:08.7]} 50. Rxa3
{[%clk 0:00:13]} 50... Rb4 {[%clk 0:00:08.9]} 51. Kg3 {[%clk 0:00:13]} 51... Kd4
{[%clk 0:00:08]} 52. Kf3 {[%clk 0:00:12.3]} 52... Kc4 {[%clk 0:00:08.1]} 53. Ra6
{[%clk 0:00:12.5]} 53... Rb3+ {[%clk 0:00:08.4]} 54. Ke2 {[%clk 0:00:11.9]}
54... Rb2+ {[%clk 0:00:08.9]} 55. Kf3 {[%clk 0:00:12]} 55... Rb3+ {[%clk
0:00:09.2]} 56. Ke2 {[%clk 0:00:12.3]} 56... Kd4 {[%clk 0:00:08.5]} 57. Rxh6
{[%clk 0:00:11.8]} 57... Rb2+ {[%clk 0:00:08.4]} 58. Kf3 {[%clk 0:00:12.2]}
58... Rb3+ {[%clk 0:00:07.6]} 59. Kf2 {[%clk 0:00:12.4]} 59... Rb2+ {[%clk
0:00:05.9]} 60. Kg3 {[%clk 0:00:08.5]} 60... Kd3 {[%clk 0:00:06.3]} 61. Rg6
{[%clk 0:00:07.4]} 61... d4 {[%clk 0:00:03.6]} 62. Rxg5 {[%clk 0:00:07.9]} 62...
Ke4 {[%clk 0:00:04]} 63. Rg8 {[%clk 0:00:07.4]} 63... Rb5 {[%clk 0:00:03.9]} 64.
Re8+ {[%clk 0:00:07]} 1-0